[Event "*** SCC Grand Prix: Titled Tuesday Blitz"]
[Site "Chess.com"]
[Date "2020.06.23"]
[Round "2"]
[White "124chess"]
[Black "MartinMatthiesen"]
[Result "1-0"]
[WhiteElo "2719"]
[BlackElo "2338"]
[TimeControl "180+1"]
[EndTime "10:19:41 PDT"]
[Termination "124chess won on time"]

1. b3 {[%clk 0:03:00.9]} 1... e5 {[%clk 0:02:59.1]} 2. Bb2 {[%clk 0:03:01.1]}
2... Nc6 {[%clk 0:02:59.2]} 3. e3 {[%clk 0:03:02]} 3... Nf6 {[%clk 0:02:58.3]}
4. Bb5 {[%clk 0:03:01.6]} 4... Bd6 {[%clk 0:02:58.3]} 5. d3 {[%clk 0:03:00.3]}
5... O-O {[%clk 0:02:57.1]} 6. Bxc6 {[%clk 0:03:00]} 6... dxc6 {[%clk 0:02:57]}
7. Nd2 {[%clk 0:03:00.9]} 7... a5 {[%clk 0:02:36.9]} 8. a4 {[%clk 0:02:59.9]}
8... Nd5 {[%clk 0:02:35]} 9. Ne2 {[%clk 0:02:58.5]} 9... Qg5 {[%clk 0:02:23.8]}
10. O-O {[%clk 0:02:57.6]} 10... Qh6 {[%clk 0:02:17.8]} 11. e4 {[%clk
0:02:46.5]} 11... Nb4 {[%clk 0:02:05.3]} 12. Nc4 {[%clk 0:02:45.5]} 12... f6
{[%clk 0:01:52.3]} 13. Ng3 {[%clk 0:02:45.5]} 13... c5 {[%clk 0:01:49.2]} 14.
Bc1 {[%clk 0:02:35.2]} 14... Qg6 {[%clk 0:01:48.6]} 15. Be3 {[%clk 0:02:34]}
15... Nc6 {[%clk 0:01:47.8]} 16. Kh1 {[%clk 0:02:28.9]} 16... Be6 {[%clk
0:01:46]} 17. f4 {[%clk 0:02:27.8]} 17... exf4 {[%clk 0:01:44.9]} 18. Bxf4
{[%clk 0:02:28.7]} 18... Bxf4 {[%clk 0:01:43.1]} 19. Rxf4 {[%clk 0:02:29.6]}
19... Bxc4 {[%clk 0:01:42.1]} 20. bxc4 {[%clk 0:02:30.5]} 20... Ra6 {[%clk
0:01:37.4]} 21. Rb1 {[%clk 0:02:29.1]} 21... b6 {[%clk 0:01:16.4]} 22. Rg4
{[%clk 0:02:26.6]} 22... Qe8 {[%clk 0:01:05.6]} 23. Nf5 {[%clk 0:02:25.8]} 23...
g6 {[%clk 0:01:05.7]} 24. Qd2 {[%clk 0:02:23.3]} 24... Ne5 {[%clk 0:00:38.5]}
25. Rg3 {[%clk 0:02:22.6]} 25... Kh8 {[%clk 0:00:18.6]} 26. Ne3 {[%clk
0:02:21.5]} 26... Ra8 {[%clk 0:00:17.4]} 27. Nd5 {[%clk 0:02:19.8]} 27... Rf7
{[%clk 0:00:17.2]} 28. Rf1 {[%clk 0:02:18.1]} 28... Qxa4 {[%clk 0:00:16.3]} 29.
h4 {[%clk 0:02:15.5]} 29... Raf8 {[%clk 0:00:15.7]} 30. h5 {[%clk 0:02:13.8]}
30... g5 {[%clk 0:00:16]} 31. h6 {[%clk 0:02:14.3]} 31... Qd7 {[%clk 0:00:14.7]}
32. Qc3 {[%clk 0:02:11.7]} 32... Qe6 {[%clk 0:00:14.3]} 33. Rf5 {[%clk
0:02:10.7]} 33... c6 {[%clk 0:00:13]} 34. Nxb6 {[%clk 0:01:44.8]} 34... Rb8
{[%clk 0:00:12.9]} 35. Na4 {[%clk 0:01:44.5]} 35... Rb1+ {[%clk 0:00:12.2]} 36.
Kh2 {[%clk 0:01:44.7]} 36... Qe8 {[%clk 0:00:11.1]} 37. Rgxg5 {[%clk 0:01:35.8]}
37... Qf8 {[%clk 0:00:08.6]} 38. Rxe5 {[%clk 0:00:39.9]} 38... Qxh6+ {[%clk
0:00:08.6]} 39. Kg3 {[%clk 0:00:39.3]} 39... fxe5 {[%clk 0:00:08.9]} 40. Qxe5+
{[%clk 0:00:39.1]} 40... Qf6 {[%clk 0:00:09.2]} 41. Qxf6+ {[%clk 0:00:28.2]}
41... Rxf6 {[%clk 0:00:10.1]} 42. Rxc5 {[%clk 0:00:29.1]} 42... Rf7 {[%clk
0:00:09.5]} 43. Rxa5 {[%clk 0:00:26.5]} 43... Ra1 {[%clk 0:00:09.8]} 44. Ra8+
{[%clk 0:00:24]} 44... Kg7 {[%clk 0:00:09.2]} 45. c5 {[%clk 0:00:21.2]} 45...
Kg6 {[%clk 0:00:07.4]} 46. Nb6 {[%clk 0:00:20.3]} 46... Rxa8 {[%clk 0:00:06.2]}
47. Nxa8 {[%clk 0:00:21.2]} 47... Rb7 {[%clk 0:00:06.2]} 48. Nb6 {[%clk
0:00:21.1]} 48... Ra7 {[%clk 0:00:06.5]} 49. Kf3 {[%clk 0:00:19.1]} 49... Ra2
{[%clk 0:00:06.4]} 50. Nc4 {[%clk 0:00:17.1]} 50... Rxc2 {[%clk 0:00:05.8]} 51.
Ne5+ {[%clk 0:00:17.4]} 51... Kg7 {[%clk 0:00:05.3]} 52. d4 {[%clk 0:00:17.6]}
52... Rc3+ {[%clk 0:00:03.7]} 53. Kf4 {[%clk 0:00:17.8]} 53... Rc2 {[%clk
0:00:04.1]} 54. Nxc6 {[%clk 0:00:17.7]} 54... Rxg2 {[%clk 0:00:04]} 55. d5
{[%clk 0:00:16.6]} 55... h5 {[%clk 0:00:03.5]} 56. d6 {[%clk 0:00:16.5]} 56...
h4 {[%clk 0:00:03.1]} 57. d7 {[%clk 0:00:15]} 57... Rd2 {[%clk 0:00:01.6]} 58.
d8=Q {[%clk 0:00:15.2]} 1-0

[Event "*** SCC Grand Prix: Titled Tuesday Blitz"]
[Site "Chess.com"]
[Date "2020.06.23"]
[Round "2"]
[White "El_ultimo_Pablo"]
[Black "Brave_spirit12"]
[Result "0-1"]
[WhiteElo "2441"]
[BlackElo "2315"]
[TimeControl "180+1"]
[EndTime "10:19:42 PDT"]
[Termination "Brave_spirit12 won by checkmate"]

1. d4 {[%clk 0:03:00.9]} 1... Nf6 {[%clk 0:02:59.4]} 2. c4 {[%clk 0:03:01.1]}
2... e6 {[%clk 0:02:59.9]} 3. Nc3 {[%clk 0:03:01.5]} 3... d5 {[%clk 0:03:00.8]}
4. Qc2 {[%clk 0:03:01.6]} 4... Be7 {[%clk 0:03:01.1]} 5. Nf3 {[%clk 0:03:02.1]}
5... O-O {[%clk 0:03:01.1]} 6. Bg5 {[%clk 0:03:02.6]} 6... c6 {[%clk 0:03:01.3]}
7. Rd1 {[%clk 0:03:02.6]} 7... h6 {[%clk 0:03:01.5]} 8. Bh4 {[%clk 0:03:02.6]}
8... a6 {[%clk 0:03:01.3]} 9. e3 {[%clk 0:03:02]} 9... dxc4 {[%clk 0:02:59.9]}
10. Bxc4 {[%clk 0:03:02.9]} 10... b5 {[%clk 0:03:00.8]} 11. Bd3 {[%clk
0:03:03.3]} 11... Bb7 {[%clk 0:03:01]} 12. O-O {[%clk 0:03:03.1]} 12... Nbd7
{[%clk 0:03:00.8]} 13. Ne5 {[%clk 0:02:59.5]} 13... Rc8 {[%clk 0:02:59.9]} 14.
Nxd7 {[%clk 0:02:55.5]} 14... Qxd7 {[%clk 0:03:00.7]} 15. Bxf6 {[%clk
0:02:52.8]} 15... Bxf6 {[%clk 0:03:01.6]} 16. Ne4 {[%clk 0:02:53.2]} 16... Be7
{[%clk 0:02:57.4]} 17. Rc1 {[%clk 0:02:52.7]} 17... c5 {[%clk 0:02:10.7]} 18.
Nxc5 {[%clk 0:02:45.8]} 18... Qd5 {[%clk 0:02:09.8]} 19. Be4 {[%clk 0:02:30.4]}
19... Rxc5 {[%clk 0:02:08.3]} 20. Bxd5 {[%clk 0:02:30.4]} 20... Rxc2 {[%clk
0:02:07]} 21. Bxb7 {[%clk 0:02:29.7]} 21... Rxb2 {[%clk 0:02:04.5]} 22. Bxa6
{[%clk 0:02:21.8]} 22... Ra8 {[%clk 0:02:03]} 23. Rc8+ {[%clk 0:02:08.6]} 23...
Rxc8 {[%clk 0:02:01.2]} 24. Bxc8 {[%clk 0:02:09.5]} 24... Rxa2 {[%clk
0:02:00.4]} 25. Bb7 {[%clk 0:02:06.8]} 25... b4 {[%clk 0:01:58.4]} 26. Be4
{[%clk 0:02:04.1]} 26... f5 {[%clk 0:01:53.5]} 27. Bd3 {[%clk 0:02:02.6]} 27...
Rd2 {[%clk 0:01:50.5]} 28. Bc4 {[%clk 0:02:01.5]} 28... Kf7 {[%clk 0:01:50.5]}
29. Rb1 {[%clk 0:01:55.7]} 29... Rc2 {[%clk 0:01:49.1]} 30. Bb3 {[%clk
0:01:55.6]} 30... Rd2 {[%clk 0:01:47.3]} 31. Kf1 {[%clk 0:01:54.8]} 31... Rd3
{[%clk 0:01:42.2]} 32. Ke2 {[%clk 0:01:49]} 32... Rc3 {[%clk 0:01:40.5]} 33. Kd2
{[%clk 0:01:44.2]} 33... Kf6 {[%clk 0:01:39.8]} 34. Bc2 {[%clk 0:01:42.7]} 34...
e5 {[%clk 0:01:33.3]} 35. dxe5+ {[%clk 0:01:42.4]} 35... Kxe5 {[%clk 0:01:34.2]}
36. Bd3 {[%clk 0:01:42.5]} 36... g5 {[%clk 0:01:29.5]} 37. Ra1 {[%clk
0:01:35.5]} 37... Ra3 {[%clk 0:01:10.7]} 38. Rb1 {[%clk 0:01:28.2]} 38... Ra2+
{[%clk 0:01:09.3]} 39. Bc2 {[%clk 0:01:27.2]} 39... f4 {[%clk 0:01:06.3]} 40.
exf4+ {[%clk 0:01:26.5]} 40... Kxf4 {[%clk 0:01:06.8]} 41. Rb3 {[%clk
0:01:18.3]} 41... Bc5 {[%clk 0:01:05.5]} 42. Rf3+ {[%clk 0:01:10]} 42... Ke5
{[%clk 0:01:00.7]} 43. Rf5+ {[%clk 0:01:09.8]} 43... Kd4 {[%clk 0:00:59.4]} 44.
Kc1 {[%clk 0:01:01.5]} 44... Kc4 {[%clk 0:00:51.6]} 45. h4 {[%clk 0:00:51.5]}
45... Ra1+ {[%clk 0:00:41.7]} 46. Kd2 {[%clk 0:00:48.4]} 46... Ra2 {[%clk
0:00:38.7]} 47. Kd1 {[%clk 0:00:45.8]} 47... Bd4 {[%clk 0:00:27.8]} 48. hxg5
{[%clk 0:00:40.2]} 48... hxg5 {[%clk 0:00:28.7]} 49. Be4 {[%clk 0:00:32.1]}
49... Ra1+ {[%clk 0:00:21.5]} 50. Ke2 {[%clk 0:00:26.5]} 50... Ra2+ {[%clk
0:00:21.8]} 51. Kd1 {[%clk 0:00:21.9]} 51... Rxf2 {[%clk 0:00:20.9]} 52. Rxg5
{[%clk 0:00:16.9]} 52... Kc3 {[%clk 0:00:13.6]} 53. Bd5 {[%clk 0:00:12.7]} 53...
Rd2+ {[%clk 0:00:11.3]} 54. Ke1 {[%clk 0:00:12.5]} 54... Be3 {[%clk 0:00:11.7]}
55. Bf7 {[%clk 0:00:09.9]} 55... Bxg5 {[%clk 0:00:11.1]} 56. Be6 {[%clk
0:00:08.5]} 56... b3 {[%clk 0:00:10.9]} 57. Bxb3 {[%clk 0:00:08.2]} 57... Kxb3
{[%clk 0:00:11.8]} 58. g4 {[%clk 0:00:08.6]} 58... Kc3 {[%clk 0:00:11.8]} 59.
Kf1 {[%clk 0:00:08.9]} 59... Kd3 {[%clk 0:00:12.7]} 60. Kg1 {[%clk 0:00:09.3]}
60... Ke3 {[%clk 0:00:13.1]} 61. Kh1 {[%clk 0:00:10.2]} 61... Kf3 {[%clk
0:00:14]} 62. Kg1 {[%clk 0:00:10.7]} 62... Rd1+ {[%clk 0:00:13.9]} 63. Kh2
{[%clk 0:00:10.9]} 63... Bf4+ {[%clk 0:00:14.8]} 64. Kh3 {[%clk 0:00:11]} 64...
Rh1# {[%clk 0:00:15.1]} 0-1

[Event "*** SCC Grand Prix: Titled Tuesday Blitz"]
[Site "Chess.com"]
[Date "2020.06.23"]
[Round "2"]
[White "XxPetroffsxX"]
[Black "ChronicUnhappiness"]
[Result "1-0"]
[WhiteElo "1918"]
[BlackElo "2339"]
[TimeControl "180+1"]
[EndTime "10:19:42 PDT"]
[Termination "XxPetroffsxX won on time"]

1. e4 {[%clk 0:03:00.7]} 1... d6 {[%clk 0:02:59]} 2. d4 {[%clk 0:03:00.5]} 2...
Nf6 {[%clk 0:02:58.5]} 3. Nc3 {[%clk 0:03:01]} 3... g6 {[%clk 0:02:58.4]} 4. h3
{[%clk 0:03:00.6]} 4... Bg7 {[%clk 0:02:58]} 5. Be3 {[%clk 0:03:01.2]} 5... O-O
{[%clk 0:02:54.3]} 6. g4 {[%clk 0:03:01.4]} 6... c5 {[%clk 0:02:43.4]} 7. Nge2
{[%clk 0:03:00.3]} 7... cxd4 {[%clk 0:02:40.2]} 8. Nxd4 {[%clk 0:02:59.8]} 8...
Nc6 {[%clk 0:02:40.1]} 9. Bg2 {[%clk 0:02:54.1]} 9... Nxd4 {[%clk 0:02:34.4]}
10. Bxd4 {[%clk 0:02:53.9]} 10... Bd7 {[%clk 0:02:32.8]} 11. O-O {[%clk
0:02:53]} 11... Bc6 {[%clk 0:02:28.3]} 12. Re1 {[%clk 0:02:50.9]} 12... Qa5
{[%clk 0:02:18]} 13. Qd2 {[%clk 0:02:43.3]} 13... Rfc8 {[%clk 0:02:13.7]} 14.
Rad1 {[%clk 0:02:40.1]} 14... Nd7 {[%clk 0:01:37.2]} 15. Bxg7 {[%clk 0:02:39.3]}
15... Kxg7 {[%clk 0:01:36.9]} 16. a3 {[%clk 0:02:37.2]} 16... a6 {[%clk
0:01:30.6]} 17. Qd4+ {[%clk 0:02:33.1]} 17... Kg8 {[%clk 0:01:25.7]} 18. Qd2
{[%clk 0:02:31]} 18... Ne5 {[%clk 0:01:21.8]} 19. Qe2 {[%clk 0:01:58.2]} 19...
Bb5 {[%clk 0:01:04.8]} 20. Nxb5 {[%clk 0:01:54.5]} 20... Qxb5 {[%clk 0:01:05.7]}
21. Qxb5 {[%clk 0:01:44.6]} 21... axb5 {[%clk 0:01:06.6]} 22. c3 {[%clk
0:01:43.7]} 22... Nc4 {[%clk 0:01:06.5]} 23. Re2 {[%clk 0:01:41.7]} 23... Rc7
{[%clk 0:01:04.8]} 24. f4 {[%clk 0:01:39.4]} 24... Kg7 {[%clk 0:00:50.3]} 25.
Kf2 {[%clk 0:01:38.7]} 25... e5 {[%clk 0:00:42.9]} 26. f5 {[%clk 0:01:35.1]}
26... g5 {[%clk 0:00:37.6]} 27. Bf3 {[%clk 0:01:18.5]} 27... Kf6 {[%clk
0:00:36.6]} 28. Kg3 {[%clk 0:01:17.9]} 28... Ke7 {[%clk 0:00:35.7]} 29. h4
{[%clk 0:01:17.6]} 29... gxh4+ {[%clk 0:00:33.3]} 30. Kxh4 {[%clk 0:01:15.7]}
30... h6 {[%clk 0:00:32.9]} 31. Rh1 {[%clk 0:01:11.7]} 31... Kf6 {[%clk
0:00:29.2]} 32. Kg3 {[%clk 0:01:09.8]} 32... Kg7 {[%clk 0:00:26.5]} 33. Rd1
{[%clk 0:00:51.4]} 33... f6 {[%clk 0:00:21.7]} 34. Rd5 {[%clk 0:00:50.7]} 34...
Rc5 {[%clk 0:00:20.1]} 35. Rd1 {[%clk 0:00:48.9]} 35... Rd8 {[%clk 0:00:16]} 36.
Rd3 {[%clk 0:00:48.4]} 36... Nb6 {[%clk 0:00:15.4]} 37. Red2 {[%clk 0:00:46.5]}
37... Nc4 {[%clk 0:00:14.6]} 38. Re2 {[%clk 0:00:45.3]} 38... Rg8 {[%clk
0:00:14.7]} 39. Kf2 {[%clk 0:00:43.2]} 39... Kh7 {[%clk 0:00:14.2]} 40. Ke1
{[%clk 0:00:40.8]} 40... h5 {[%clk 0:00:12.5]} 41. Rg2 {[%clk 0:00:35.5]} 41...
Rg5 {[%clk 0:00:10.4]} 42. Kd1 {[%clk 0:00:33.8]} 42... Kh6 {[%clk 0:00:09.4]}
43. Kc2 {[%clk 0:00:34.2]} 43... Rg7 {[%clk 0:00:06.9]} 44. Rd1 {[%clk
0:00:31.8]} 44... h4 {[%clk 0:00:07]} 45. Rd3 {[%clk 0:00:29.3]} 45... Kg5
{[%clk 0:00:06.3]} 46. Bd1 {[%clk 0:00:27.5]} 46... Rh7 {[%clk 0:00:06.1]} 47.
b3 {[%clk 0:00:22.2]} 47... Nb6 {[%clk 0:00:01.4]} 48. Kb2 {[%clk 0:00:21.1]}
48... h3 {[%clk 0:00:01.9]} 49. Rh2 {[%clk 0:00:20.9]} 49... d5 {[%clk
0:00:02.1]} 50. exd5 {[%clk 0:00:19.1]} 50... Nxd5 {[%clk 0:00:02.1]} 51. Bf3
{[%clk 0:00:18.3]} 51... Nf4 {[%clk 0:00:01.8]} 52. Rd8 {[%clk 0:00:17.1]} 1-0

[Event "*** SCC Grand Prix: Titled Tuesday Blitz"]
[Site "Chess.com"]
[Date "2020.06.23"]
[Round "2"]
[White "csati17"]
[Black "Grineva_Marianna"]
[Result "1-0"]
[WhiteElo "2623"]
[BlackElo "2187"]
[TimeControl "180+1"]
[EndTime "10:19:44 PDT"]
[Termination "csati17 won by resignation"]

1. c4 {[%clk 0:03:00.9]} 1... e5 {[%clk 0:02:58.5]} 2. g3 {[%clk 0:03:00.7]}
2... d6 {[%clk 0:02:57.2]} 3. Nc3 {[%clk 0:03:00]} 3... f5 {[%clk 0:02:57]} 4.
d4 {[%clk 0:02:59.8]} 4... Be7 {[%clk 0:02:55.6]} 5. Bg2 {[%clk 0:02:46.4]} 5...
Nf6 {[%clk 0:02:52.5]} 6. dxe5 {[%clk 0:02:43.9]} 6... dxe5 {[%clk 0:02:52]} 7.
Qxd8+ {[%clk 0:02:44.8]} 7... Bxd8 {[%clk 0:02:52.5]} 8. Nf3 {[%clk 0:02:45.7]}
8... Nc6 {[%clk 0:02:44.5]} 9. e4 {[%clk 0:02:31.3]} 9... O-O {[%clk 0:02:35.9]}
10. O-O {[%clk 0:02:30.9]} 10... Be6 {[%clk 0:02:18.3]} 11. b3 {[%clk
0:02:23.6]} 11... h6 {[%clk 0:02:01.2]} 12. Re1 {[%clk 0:02:16.6]} 12... fxe4
{[%clk 0:01:55.2]} 13. Nxe4 {[%clk 0:02:02.5]} 13... Nxe4 {[%clk 0:01:56.1]} 14.
Rxe4 {[%clk 0:02:03.1]} 14... Bf5 {[%clk 0:01:54.3]} 15. Re1 {[%clk 0:02:03.3]}
15... Bf6 {[%clk 0:01:38.6]} 16. Bb2 {[%clk 0:02:01.1]} 16... Rae8 {[%clk
0:01:36.3]} 17. Nd2 {[%clk 0:01:48.9]} 17... Nb4 {[%clk 0:01:12.9]} 18. Be4
{[%clk 0:01:33.5]} 18... Bxe4 {[%clk 0:00:45.1]} 19. Rxe4 {[%clk 0:01:34.4]}
19... Nd3 {[%clk 0:00:44.3]} 20. Ba3 {[%clk 0:01:34.1]} 20... c5 {[%clk
0:00:29.1]} 21. h4 {[%clk 0:01:14.5]} 21... b6 {[%clk 0:00:29.2]} 22. Nf1 {[%clk
0:01:04.1]} 22... Rd8 {[%clk 0:00:26.1]} 23. Ne3 {[%clk 0:01:02.8]} 23... Rd4
{[%clk 0:00:24.1]} 24. f3 {[%clk 0:00:58.7]} 24... Rxe4 {[%clk 0:00:23.3]} 25.
fxe4 {[%clk 0:00:59.6]} 25... Rd8 {[%clk 0:00:22.4]} 26. Nd5 {[%clk 0:00:59.6]}
26... Kf7 {[%clk 0:00:20.7]} 27. Rd1 {[%clk 0:00:51]} 27... Nb4 {[%clk
0:00:20.6]} 28. Bxb4 {[%clk 0:00:51.6]} 28... cxb4 {[%clk 0:00:20.6]} 29. Rd3
{[%clk 0:00:50]} 29... Ke6 {[%clk 0:00:19.2]} 30. Nxb4 {[%clk 0:00:46.7]} 30...
Rxd3 {[%clk 0:00:18.5]} 31. Nxd3 {[%clk 0:00:47.6]} 31... Be7 {[%clk 0:00:19.1]}
32. Kg2 {[%clk 0:00:42.1]} 32... a5 {[%clk 0:00:19.2]} 33. Kf3 {[%clk
0:00:41.1]} 33... Bd6 {[%clk 0:00:18.6]} 34. h5 {[%clk 0:00:39.9]} 34... Be7
{[%clk 0:00:18]} 35. Nb2 {[%clk 0:00:35.6]} 35... Bd6 {[%clk 0:00:15.9]} 36. Na4
{[%clk 0:00:35.3]} 36... Bc7 {[%clk 0:00:16.4]} 37. Nc3 {[%clk 0:00:31.3]} 37...
Bd6 {[%clk 0:00:15.5]} 38. Nd5 {[%clk 0:00:31.5]} 38... Bc5 {[%clk 0:00:15.6]}
39. g4 {[%clk 0:00:27.3]} 39... Bd4 {[%clk 0:00:15.2]} 40. g5 {[%clk 0:00:26.1]}
40... hxg5 {[%clk 0:00:15.4]} 41. Kg4 {[%clk 0:00:26.5]} 41... Bc5 {[%clk
0:00:15]} 42. Kxg5 {[%clk 0:00:26.7]} 42... Kf7 {[%clk 0:00:15.6]} 43. Kf5
{[%clk 0:00:26.4]} 43... Bd4 {[%clk 0:00:16.2]} 44. Nc7 {[%clk 0:00:23.4]} 44...
Bc5 {[%clk 0:00:15.9]} 45. Kxe5 {[%clk 0:00:22.3]} 45... Bf2 {[%clk 0:00:16.4]}
46. Kf5 {[%clk 0:00:20.2]} 46... Bc5 {[%clk 0:00:15.4]} 47. e5 {[%clk
0:00:20.6]} 47... Ke7 {[%clk 0:00:14.2]} 48. e6 {[%clk 0:00:20.7]} 48... Bd6
{[%clk 0:00:12.5]} 49. Nd5+ {[%clk 0:00:20]} 49... Ke8 {[%clk 0:00:13.1]} 50.
Nxb6 {[%clk 0:00:19]} 50... Bc5 {[%clk 0:00:13.1]} 51. Nd5 {[%clk 0:00:18.3]}
51... Bd6 {[%clk 0:00:12.7]} 52. Kg6 {[%clk 0:00:18.3]} 52... Be5 {[%clk
0:00:12.3]} 53. h6 {[%clk 0:00:17.4]} 53... gxh6 {[%clk 0:00:11.8]} 54. Kxh6
{[%clk 0:00:18.3]} 54... Kd8 {[%clk 0:00:12.1]} 55. Kg6 {[%clk 0:00:18.4]} 55...
Bd6 {[%clk 0:00:12.2]} 56. Kf7 {[%clk 0:00:18.5]} 56... Bc5 {[%clk 0:00:11.8]}
57. e7+ {[%clk 0:00:19.4]} 57... Bxe7 {[%clk 0:00:12]} 58. Nxe7 {[%clk
0:00:20.3]} 58... Kd7 {[%clk 0:00:12.7]} 59. Nd5 {[%clk 0:00:19.6]} 59... Kd6
{[%clk 0:00:13.2]} 60. Kf6 {[%clk 0:00:20]} 60... Kc5 {[%clk 0:00:13.8]} 61. Ke5
{[%clk 0:00:20.5]} 61... a4 {[%clk 0:00:14.4]} 62. Ke4 {[%clk 0:00:16.8]} 62...
axb3 {[%clk 0:00:13.4]} 63. axb3 {[%clk 0:00:17.7]} 63... Kd6 {[%clk 0:00:14.2]}
64. b4 {[%clk 0:00:17.9]} 64... Kc6 {[%clk 0:00:14.7]} 65. Kd4 {[%clk
0:00:18.3]} 65... Kd6 {[%clk 0:00:15.6]} 66. Ke4 {[%clk 0:00:18.9]} 66... Kc6
{[%clk 0:00:16.1]} 67. b5+ {[%clk 0:00:18.6]} 67... Kd6 {[%clk 0:00:17]} 68. Kd4
{[%clk 0:00:18.8]} 68... Kd7 {[%clk 0:00:17]} 69. Kc5 {[%clk 0:00:19.7]} 69...
Ke6 {[%clk 0:00:16.4]} 70. Kb4 {[%clk 0:00:20.6]} 70... Kd7 {[%clk 0:00:17.1]}
71. Ka5 {[%clk 0:00:21.2]} 71... Kd6 {[%clk 0:00:17.7]} 72. Ka6 {[%clk
0:00:22.1]} 72... Kc5 {[%clk 0:00:18.3]} 73. b6 {[%clk 0:00:22.5]} 73... Kxc4
{[%clk 0:00:19.2]} 74. Kb7 {[%clk 0:00:22.6]} 74... Kxd5 {[%clk 0:00:20.1]} 75.
Kc7 {[%clk 0:00:23.1]} 1-0

[Event "*** SCC Grand Prix: Titled Tuesday Blitz"]
[Site "Chess.com"]
[Date "2020.06.23"]
[Round "2"]
[White "amintabatabaei"]
[Black "GelmanAlexander"]
[Result "0-1"]
[WhiteElo "2806"]
[BlackElo "2555"]
[TimeControl "180+1"]
[EndTime "10:19:45 PDT"]
[Termination "GelmanAlexander won by resignation"]

1. e4 {[%clk 0:03:00.9]} 1... c5 {[%clk 0:02:59.2]} 2. Nf3 {[%clk 0:03:00.1]}
2... e6 {[%clk 0:02:59.7]} 3. b3 {[%clk 0:02:58.9]} 3... a6 {[%clk 0:02:59.3]}
4. Bb2 {[%clk 0:02:58.9]} 4... d6 {[%clk 0:02:58.1]} 5. d4 {[%clk 0:02:56.4]}
5... cxd4 {[%clk 0:02:58]} 6. Nxd4 {[%clk 0:02:57.1]} 6... Nf6 {[%clk
0:02:58.1]} 7. Bd3 {[%clk 0:02:55.2]} 7... g6 {[%clk 0:02:51.3]} 8. c4 {[%clk
0:02:50]} 8... Bg7 {[%clk 0:02:51.3]} 9. O-O {[%clk 0:02:50.6]} 9... b6 {[%clk
0:02:45.2]} 10. Nc3 {[%clk 0:02:45.9]} 10... Bb7 {[%clk 0:02:45.6]} 11. Re1
{[%clk 0:02:46.5]} 11... Nbd7 {[%clk 0:02:44.8]} 12. Bf1 {[%clk 0:02:43.2]}
12... O-O {[%clk 0:02:38.7]} 13. g3 {[%clk 0:02:42.6]} 13... Rc8 {[%clk
0:02:30.8]} 14. Bg2 {[%clk 0:02:42.4]} 14... Qc7 {[%clk 0:02:31.2]} 15. Rc1
{[%clk 0:02:40.9]} 15... Rfd8 {[%clk 0:02:29.9]} 16. Qd2 {[%clk 0:02:36.8]}
16... Qb8 {[%clk 0:02:23.8]} 17. h3 {[%clk 0:02:27.8]} 17... Nc5 {[%clk
0:02:22.1]} 18. Kh2 {[%clk 0:02:24.7]} 18... Qa8 {[%clk 0:02:22]} 19. Qe2 {[%clk
0:02:16.5]} 19... d5 {[%clk 0:02:05.5]} 20. cxd5 {[%clk 0:02:17.4]} 20... e5
{[%clk 0:02:05.7]} 21. Nf3 {[%clk 0:02:08.9]} 21... Ne8 {[%clk 0:01:57.3]} 22.
Nd2 {[%clk 0:01:50]} 22... b5 {[%clk 0:01:56.6]} 23. b4 {[%clk 0:01:45]} 23...
Nd7 {[%clk 0:01:55]} 24. a4 {[%clk 0:01:45.7]} 24... Nd6 {[%clk 0:01:50.4]} 25.
axb5 {[%clk 0:01:43.2]} 25... axb5 {[%clk 0:01:51.3]} 26. Ra1 {[%clk 0:01:43.6]}
26... Qb8 {[%clk 0:01:51.4]} 27. Nxb5 {[%clk 0:01:35.8]} 27... Rc2 {[%clk
0:01:43.3]} 28. Nxd6 {[%clk 0:01:13.7]} 28... Qxd6 {[%clk 0:01:32.7]} 29. Qd3
{[%clk 0:00:49.9]} 29... Rxb2 {[%clk 0:01:29.4]} 30. Nc4 {[%clk 0:00:50.2]}
30... Qxb4 {[%clk 0:01:21.2]} 31. Nxb2 {[%clk 0:00:50.3]} 31... Qxb2 {[%clk
0:01:22.1]} 32. Reb1 {[%clk 0:00:44.3]} 32... Qxf2 {[%clk 0:01:21.2]} 33. Rxb7
{[%clk 0:00:38]} 33... Nc5 {[%clk 0:01:20.6]} 34. Qb1 {[%clk 0:00:37.1]} 34...
Nxb7 {[%clk 0:01:19.4]} 35. Qxb7 {[%clk 0:00:38]} 35... Qd2 {[%clk 0:00:58.8]}
36. Rf1 {[%clk 0:00:37.5]} 36... Rf8 {[%clk 0:00:56.4]} 37. Qe7 {[%clk 0:00:37]}
37... Bh6 {[%clk 0:00:52.3]} 38. Qxe5 {[%clk 0:00:32.6]} 38... Bg7 {[%clk
0:00:52.6]} 39. Qf4 {[%clk 0:00:32.5]} 39... Qd4 {[%clk 0:00:52.7]} 40. h4
{[%clk 0:00:30.4]} 40... Be5 {[%clk 0:00:53]} 41. Qf3 {[%clk 0:00:30.8]} 41...
h5 {[%clk 0:00:52.4]} 42. Bh3 {[%clk 0:00:31.1]} 42... Kg7 {[%clk 0:00:52.5]}
43. Be6 {[%clk 0:00:30.3]} 43... Bd6 {[%clk 0:00:50.1]} 44. Bh3 {[%clk
0:00:27.5]} 44... Qe5 {[%clk 0:00:47.3]} 45. Rf2 {[%clk 0:00:21.5]} 45... Qe7
{[%clk 0:00:45.5]} 46. Qc3+ {[%clk 0:00:19.4]} 46... Be5 {[%clk 0:00:44.8]} 47.
Qc6 {[%clk 0:00:19.6]} 47... Qxh4 {[%clk 0:00:42.1]} 48. Rf3 {[%clk 0:00:14.5]}
48... Qg5 {[%clk 0:00:39.3]} 49. Bg2 {[%clk 0:00:15.3]} 49... h4 {[%clk
0:00:39.4]} 50. Qc4 {[%clk 0:00:07.5]} 50... hxg3+ {[%clk 0:00:38.5]} 51. Kg1
{[%clk 0:00:08]} 51... Rb8 {[%clk 0:00:38.3]} 52. d6 {[%clk 0:00:06.8]} 52...
Rb1+ {[%clk 0:00:36.3]} 53. Bf1 {[%clk 0:00:06.5]} 53... Bxd6 {[%clk 0:00:24.7]}
54. Qxf7+ {[%clk 0:00:05.7]} 54... Kh6 {[%clk 0:00:25.4]} 55. Qg8 {[%clk
0:00:02.5]} 55... Bc5+ {[%clk 0:00:23]} 56. Kg2 {[%clk 0:00:02]} 56... Rb2+
{[%clk 0:00:23.4]} 57. Be2 {[%clk 0:00:01]} 57... Rxe2+ {[%clk 0:00:22.9]} 58.
Kf1 {[%clk 0:00:01.9]} 58... Qc1+ {[%clk 0:00:10.6]} 59. Kxe2 {[%clk 0:00:02.2]}
59... Qc2+ {[%clk 0:00:11.1]} 60. Ke1 {[%clk 0:00:01.4]} 60... Bb4+ {[%clk
0:00:09.9]} 61. Kf1 {[%clk 0:00:01.9]} 61... g2+ {[%clk 0:00:10.3]} 62. Kg1
{[%clk 0:00:01.7]} 62... Bc5+ {[%clk 0:00:10.8]} 0-1